[Event "Czech Open-GM 2022"]
[Site "Pardubice"]
[Date "2022.07.23"]
[Round "2.41"]
[White "Czerw, Dawid"]
[Black "Roessler, Ulrike"]
[Result "0-1"]
[ECO "B51"]
[WhiteElo "2391"]
[BlackElo "2129"]
[Annotator "TA"]
[PlyCount "116"]
[EventDate "2022.07.22"]
[EventType "swiss"]
[EventCountry "CZE"]
[SourceTitle "playchess.com"]
[Source "ChessBase"]
[SourceQuality "1"]
[TimeControl "40/5400+30:1800+30"]

{[%evp 9,116,22,19,27,19,25,18,19,24,25,27,18,17,17,27,6,6,0,3,3,3,13,16,13,10,7,20,16,13,26,50,28,30,23,21,24,69,55,105,105,126,112,112,58,65,65,65,65,65,65,65,65,66,0,0,0,0,-14,-14,-14,-14,-14,-18,-49,-56,-261,-223,-1122,-1129,-1125,-1122,-1085,-1066,-860,-418,-989,-956,-943,-908,-6179,-5108,-29964,-12843,-5583,-5081,-5185,-5197,-3106,-2938,-2274,-2105,-2274,-2139,-1485,-1301,-12839,-12840,-12225,-12520,-12845,-12840,-6612,-6612,-29980,-29981,-29983,-29958,-29992,-29993]} 1. e4 {[%emt 0:00:03]} c5 {[%emt 0:00:16]} 2. Nf3 {[%emt 0:00:10]} d6 {[%emt 0:00:04]} 3. Bb5+ {[%emt 0:01:22]} Nd7 {[%emt 0:00:05]} 4. O-O {[%emt 0:00:18]} a6 {[%emt 0:01:01]} 5. Bd3 {[%emt 0:00:06]} Ngf6 {[%emt 0:01:27]} 6. Re1 {[%emt 0:02:01] B51: Sicilian: Moscow Variation (3 Bb5+) without 3...Bd7.} e6 $1 {[%emt 0:01:36] The main line 6...e6 scores better than 6...b5.} 7. c3 {[%emt 0:00:48]} b5 {[%emt 0:00:32]} 8. Bc2 {[%emt 0:01:54] The position is equal.} c4 {[%emt 0:00:31]} 9. a4 {[%emt 0:00:39]} Bb7 {[%emt 0:00:43]} 10. d4 {[%emt 0:00:18] Inhibits Nc5.} cxd3 {[%emt 0:00:41]} 11. Qxd3 {[%emt 0:00:07]} Nc5 {[%emt 0:01:46][%csl LRd3,LRe4]} 12. Qe2 {[%emt 0:00:06]} bxa4 {[%emt 0:01:06]} 13. Be3 {[%emt 0:00:24] [#] Hoping for Bxc5.} Nfd7 {[%emt 0:01:45]} ({Don't take} 13... Ncxe4 14. Bxa4+ Nd7 15. Na3 $14) 14. Bd4 {[%emt 0:05:24]} e5 {[%emt 0:04:38]} 15. Bxc5 {[%emt 0:01:19]} (15. Be3 {looks sharper.} Bc6 16. c4 Rb8 17. Nc3) 15... Nxc5 {[%emt 0:00:08]} 16. Bxa4+ {[%emt 0:00:32]} Nxa4 {[%emt 0:01:15]} 17. Rxa4 {[%emt 0:01:51]} Be7 {[%emt 0:00:52][%cal Of7f5]} 18. c4 {[%emt 0:00:19]} O-O {[%emt 0:04:55]} 19. Nc3 {[%emt 0:01:19] [#]} f5 $146 {[%emt 0:03:07]} ({Predecessor:} 19... Bc6 20. Ra2 Qb8 21. Rea1 Qb7 22. c5 dxc5 23. Nxe5 Bb5 24. Nc4 Rfe8 25. Nd5 Bf8 {½-½ (39) Song,R (2478)-Can,E (2600) Caleta 2020}) 20. Rd1 {[%emt 0:11:57]} (20. exf5 {is interesting.} Qd7 21. Nd2 Qxf5 22. Nde4) 20... Qe8 {[%emt 0:11:40]} 21. Raa1 {[%emt 0:03:19]} fxe4 {[%emt 0:03:46]} 22. Nd2 {[%emt 0:03:14]} Qg6 {[%emt 0:05:24]} 23. Ndxe4 {[%emt 0:01:06]} Rf4 {[%emt 0:01:58]} (23... a5 $14) 24. f3 $16 {[%emt 0:00:56]} Raf8 {[%emt 0:00:28]} 25. Kh1 {[%emt 0:03:03]} Rh4 {[%emt 0:03:14]} 26. g3 {[%emt 0:06:08]} (26. Nd5 $16 Bd8 27. b4) 26... Rh6 {[%emt 0:01:16]} 27. Nd5 {[%emt 0:07:09]} Bd8 {[%emt 0:02:00]} 28. b4 {[%emt 0:01:59]} Qh5 {[%emt 0:04:24]} 29. Ra3 {[%emt 0:01:20]} Qf7 {[%emt 0:04:58]} 30. Rad3 {[%emt 0:05:16]} Kh8 {[%emt 0:04:01]} 31. b5 {[%emt 0:13:43]} (31. Kg2 $14) 31... axb5 $11 {[%emt 0:00:29]} 32. cxb5 {[%emt 0:00:24]} Rg6 {[%emt 0:03:14]} 33. Nec3 {[%emt 0:07:53]} h5 {[%emt 0:02:36][%cal Bh7h5,Bh5h4,Bh4h3][%mdl 32]} 34. Ne4 {[%emt 0:04:47]} h4 {[%emt 0:02:21]} 35. g4 {[%emt 0:03:48]} h3 {[%emt 0:00:58]} 36. Nec3 {[%emt 0:03:47]} Ba5 {[%emt 0:01:34] A strong pair of Bishops.} 37. Qe4 $2 {[%emt 0:03:57] This move loses the game for White.} ({White must play} 37. Ne4 $15) 37... Rf6 $19 {[%emt 0:03:28] [#] aiming for ...Bxc3.} 38. Nxf6 $2 {[%emt 0:04:16]} (38. f4) 38... Bxe4 {[%emt 0:00:05]} 39. Nfxe4 {[%emt 0:00:07]} Bxc3 {[%emt 0:01:16]} 40. Nxc3 {[%emt 0:00:38]} d5 {[%emt 0:00:25][%cal Oe5e4,Bd6d5,Bd5d4][%mdl 32]} 41. Ne2 {[%emt 0:05:15]} Rb8 {[%emt 0:03:23]} (41... d4 $142 {...Qb7 is the strong threat.} 42. Ng1 Qb7) 42. f4 {[%emt 0:03:45]} (42. Ng1 $142 Rxb5 43. Nxh3) 42... Rxb5 {[%emt 0:01:50]} 43. Rxh3+ {[%emt 0:00:44]} Kg8 {[%emt 0:00:04]} 44. Rc1 {[%emt 0:01:51]} Qb7 {[%emt 0:04:20]} 45. fxe5 {[%emt 0:00:49]} d4+ {[%emt 0:00:53]} 46. Kg1 {[%emt 0:00:03]} Rb1 {[%emt 0:00:05]} 47. Kf2 {[%emt 0:03:01]} Rxc1 {[%emt 0:01:56]} 48. Nxc1 {[%emt 0:00:02][%mdl 4096] Endgame KQ-KRN} Qb2+ {[%emt 0:00:04]} 49. Ne2 {[%emt 0:00:06]} Qd2 {[%emt 0:00:06]} 50. e6 {[%emt 0:00:33]} Kf8 {[%emt 0:00:59]} 51. Rf3+ {[%emt 0:00:57]} Ke7 {[%emt 0:00:31] Strongly threatening ...d3.} 52. Rf7+ {[%emt 0:04:13]} Kxe6 {[%emt 0:00:16]} 53. Rf3 {[%emt 0:00:05]} Kd6 {[%emt 0:01:07]} ({Stronger than} 53... d3 54. Rxd3 Qb4 55. h3 $15) 54. Kf1 {[%emt 0:00:18]} Qd1+ {[%emt 0:00:12]} 55. Kf2 {[%emt 0:00:04]} Qc2 {[%emt 0:01:56] ( -> ...d3)} 56. Kf1 {[%emt 0:02:11]} d3 {[%emt 0:02:03] Black mates.} 57. Ng3 {[%emt 0:00:18]} Ke5 {[%emt 0:02:27]} 58. Nh1 {[%emt 0:02:48]} Qe2+ {[%emt 0:00:42] Weighted Error Value: White=0.94/Black=0.21 (precise)} 0-1

[Event "Czech Open-GM 2022"]
[Site "Pardubice"]
[Date "2022.07.23"]
[Round "2.42"]
[White "Elmi, Saad Abobaker"]
[Black "Butkiewicz, Lukasz"]
[Result "1-0"]
[ECO "B30"]
[WhiteElo "2123"]
[BlackElo "2370"]
[Annotator "TA"]
[PlyCount "131"]
[EventDate "2022.07.22"]
[EventType "swiss"]
[EventCountry "CZE"]
[SourceTitle "playchess.com"]
[Source "ChessBase"]
[SourceQuality "1"]
[TimeControl "40/5400+30:1800+30"]

{[%evp 13,131,7,10,9,7,-16,-12,-25,0,-19,-17,-11,0,0,0,-4,-9,-10,0,-24,-16,-38,-22,-122,-114,-100,50,50,45,46,48,31,34,10,18,0,2,0,12,-27,-34,-35,-27,-30,0,0,0,0,0,0,4,10,10,0,22,0,1,0,0,0,23,27,18,0,25,0,18,12,157,150,235,234,223,224,315,302,322,324,316,322,301,260,270,255,268,219,234,233,199,138,214,100,100,100,129,100,167,119,308,295,462,457,447,451,433,294,416,391,544,529,437,435,435,277,401,377,293,174,29998,29999]} 1. e4 {[%emt 0:00:03]} c5 {[%emt 0:00:05]} 2. Nf3 {[%emt 0:00:08]} Nc6 {[%emt 0:00:07]} 3. Bb5 {[%emt 0:00:09]} e6 {[%emt 0:01:24]} 4. O-O {[%emt 0:03:10]} Nge7 {[%emt 0:01:28]} 5. Re1 {[%emt 0:01:06]} a6 {[%emt 0:02:20]} 6. Bf1 {[%emt 0:00:25]} d5 {[%emt 0:02:21]} 7. exd5 {[%emt 0:03:57]} Nxd5 {[%emt 0:02:04]} 8. g3 {[%emt 0:01:13] B30: Sicilian: 2...Nc6 3 Bb5, lines without ...g6.} Be7 {[%emt 0:01:58] [#]} 9. a4 $146 {[%emt 0:01:38]} ({Predecessor:} 9. Bg2 O-O 10. d4 Nf6 11. c3 cxd4 12. Nxd4 Nxd4 13. cxd4 Ra7 14. Nc3 b5 15. Qb3 Bb7 16. Bxb7 Rxb7 {½-½ (34) Fercec,N (2426)-Zaja,I (2461) Mali Losinj 2021}) 9... O-O {[%emt 0:01:38]} 10. Bg2 {[%emt 0:00:25] The position is equal.} Bf6 {[%emt 0:02:51]} 11. Nc3 {[%emt 0:10:48]} b6 {[%emt 0:04:47]} 12. Ne4 {[%emt 0:00:52]} Bb7 {[%emt 0:08:11]} 13. Nxf6+ {[%emt 0:00:51]} Qxf6 {[%emt 0:00:14]} (13... gxf6 14. d4 $16) 14. d3 {[%emt 0:00:48]} h6 {[%emt 0:00:46]} 15. Nd2 {[%emt 0:00:56][%cal Oa4a5]} Rfd8 {[%emt 0:09:49]} 16. Ne4 {[%emt 0:02:41]} Qe7 {[%emt 0:02:33]} 17. Bd2 {[%emt 0:01:05]} Nd4 {[%emt 0:03:19]} 18. Rc1 {[%emt 0:09:02]} (18. f3 $11) 18... f5 $17 {[%emt 0:06:31]} 19. Nc3 {[%emt 0:00:22]} Nxc3 {[%emt 0:01:03]} (19... Nb4 $17 20. f3 g5) 20. bxc3 $14 {[%emt 0:00:19] Bxb7 is the strong threat.} Bxg2 {[%emt 0:01:11]} 21. Kxg2 {[%emt 0:00:11]} Nc6 {[%emt 0:03:44]} 22. Qf3 {[%emt 0:01:55]} Qd6 {[%emt 0:05:53]} 23. Re2 {[%emt 0:01:23]} Rf8 {[%emt 0:04:23]} 24. Rb1 {[%emt 0:07:25]} Rab8 $1 {[%emt 0:01:32]} 25. Rbe1 {[%emt 0:10:12]} (25. Qh5 {with more complications.} Rf6 26. Rbe1 c4 27. Bf4) 25... e5 {[%emt 0:02:15]} 26. Bf4 {[%emt 0:03:28][%cal Rf4e5]} Rbe8 {[%emt 0:01:51]} (26... exf4 27. Re6 Qc7 28. Rxc6 $16) 27. Bc1 {[%emt 0:04:50]} Re7 {[%emt 0:03:54]} 28. Bb2 {[%emt 0:00:46]} f4 {[%emt 0:03:57]} 29. g4 $1 {[%emt 0:02:32]} Kh8 {[%emt 0:02:20]} 30. Re4 {[%emt 0:00:43]} Rfe8 {[%emt 0:02:35]} 31. c4 {[%emt 0:06:26]} Nd4 {[%emt 0:01:21]} 32. Bxd4 {[%emt 0:00:28]} cxd4 {[%emt 0:00:04]} 33. Rb1 {[%emt 0:00:37]} Qc5 {[%emt 0:02:04]} 34. Qd1 {[%emt 0:00:42]} Re6 {[%emt 0:01:30]} 35. Qd2 {[%emt 0:01:05]} h5 {[%emt 0:02:51]} 36. g5 {[%emt 0:03:45]} Rf8 {[%emt 0:05:45]} 37. h4 {[%emt 0:00:44]} f3+ {[%emt 0:00:30]} 38. Kg3 {[%emt 0:03:07][%cal Oa4a5]} Qc8 {[%emt 0:01:12]} 39. Kh2 {[%emt 0:11:06]} Kh7 {[%emt 0:04:06]} 40. a5 {[%emt 0:02:19]} bxa5 {[%emt 0:01:00]} (40... b5 $1 $11 {keeps the balance.}) 41. Qxa5 $16 {[%emt 0:30:19]} Qd7 {[%emt 0:09:23] [#]} (41... Qc6 $16 42. Qd5 (42. Rxe5 $2 Qd6 $19) 42... Rf5) 42. Qd5 $1 $18 {[%emt 0:00:00]} (42. Rxe5 $2 Qd6 43. Rbe1 Rfe8 44. g6+ (44. c5 $2 Qb8 $19) 44... Kh8 $19) 42... Qxd5 {[%emt 0:09:34]} 43. cxd5 {[%emt 0:00:00][%mdl 4096] Endgame KRR-KRR} Ree8 {[%emt 0:00:04]} (43... Re7 $142 44. Rbe1 Rf5) 44. Ra1 {[%emt 0:00:00]} Rc8 {[%emt 0:01:17]} 45. Rxe5 {[%emt 0:00:00]} (45. Rxa6 Rxc2 46. Kg3 (46. Rxe5 $2 Rxf2+ 47. Kg1 Rg2+ 48. Kf1 Rh2 $19) 46... Rc1 $14) 45... Rxc2 {[%emt 0:01:28] [#]} 46. Kg3 {[%emt 0:00:00]} (46. Rxa6 $2 Rxf2+ 47. Kg1 Rg2+ 48. Kh1 (48. Kf1 $2 Rh2 $19) 48... Rg4 $19) 46... Rc5 {[%emt 0:03:35]} 47. Re4 {[%emt 0:00:00]} (47. Rxa6 $6 Rc1 48. Ra2 Rg1+ 49. Kh2 Rg2+ 50. Kh3 Rg1 $18) 47... Rxd5 {[%emt 0:03:51]} 48. Rxa6 {[%emt 0:00:00]} Rb5 {[%emt 0:05:24]} 49. Ra1 {[%emt 0:00:00]} (49. Rxd4 $6 Rb1 $16) 49... Rd8 {[%emt 0:00:53]} 50. Re7 {[%emt 0:00:00]} (50. Kxf3 $6 Rb3 $16) 50... Rb3 {[%emt 0:00:57]} 51. Rd1 {[%emt 0:00:00]} ({Don't do} 51. Kxf3 $6 Rf8+ 52. Ke4 Rxf2 $14) ({White should try} 51. Ra6 $18) 51... Rf8 {[%emt 0:00:36]} (51... Ra3 $16 {keeps fighting.} 52. Kxf3 Kg8) 52. Re4 {[%emt 0:00:00]} (52. Rd7 $18 {has better winning chances.}) 52... Rd8 $16 {[%emt 0:01:25]} 53. Rf4 {[%emt 0:00:00]} Rb2 {[%emt 0:00:14]} 54. Rxf3 {[%emt 0:00:00]} Re8 {[%emt 0:00:45]} (54... Rd7 $16) 55. Kg2 {[%emt 0:00:00]} (55. Rc1 $18) 55... Ree2 $2 {[%emt 0:00:31] This move loses the game for Black.} (55... Rd8 $16 56. Ra1 Rb7) 56. Ra1 {[%emt 0:00:00] Black must now prevent Ra7.} Rb8 {[%emt 0:00:24]} (56... Rb7 $142 57. Ra6 Reb2) 57. Ra7 $18 {[%emt 0:00:00]} Rd2 {[%emt 0:00:39]} 58. Rd7 {[%emt 0:00:00] Inhibits Rd8.} ({Weaker is} 58. Rff7 Rg8 59. Rf6 Kh8 $18) 58... Rd1 {[%emt 0:00:22]} 59. Rxd4 {[%emt 0:00:00]} Rbb1 {[%emt 0:00:03]} (59... Kg8 $142 60. Rd7 Rb4) 60. Rf7 {[%emt 0:00:00]} Rh1 {[%emt 0:00:12]} 61. Rdd7 {[%emt 0:00:13]} Rxh4 {[%emt 0:00:07]} 62. Rxg7+ {[%emt 0:00:38]} Kh8 {[%emt 0:00:00]} 63. Rg6 {[%emt 0:03:54]} Rb5 {[%emt 0:00:58]} (63... Rg4+ {was called for.} 64. Kf3 Rb8 65. Rh6+ Kg8 66. Rxh5 Rg1) 64. f3 {[%emt 0:00:54]} Rf5 {[%emt 0:00:19]} 65. Rdg7 {[%emt 0:04:30]} (65. d4 $142) 65... Rhf4 $2 {[%emt 0:00:43]} (65... Rf8 $18 66. Rd7 Rhf4 67. Rh6+ Kg8) 66. Rg8+ {[%emt 0:00:11] Weighted Error Value: White=0.21 (precise) /Black=0.39} 1-0

[Event "Czech Open-GM 2022"]
[Site "Pardubice"]
[Date "2022.07.23"]
[Round "2.43"]
[White "Stalmach, Richard"]
[Black "Hajiyev, Kanan"]
[Result "1-0"]
[ECO "D96"]
[WhiteElo "2363"]
[BlackElo "2142"]
[Annotator "TA"]
[PlyCount "49"]
[EventDate "2022.07.22"]
[EventType "swiss"]
[EventCountry "CZE"]
[SourceTitle "playchess.com"]
[Source "ChessBase"]
[SourceQuality "1"]
[TimeControl "40/5400+30:1800+30"]

{[%evp 17,49,18,42,44,61,64,63,75,84,91,90,82,82,89,72,82,147,147,304,242,1087,1068,1048,1020,881,454,446,454,445,418,29984,5443,5908,3116]} 1. d4 {[%emt 0:00:01]} d5 {[%emt 0:03:13]} 2. c4 {[%emt 0:00:06]} c6 {[%emt 0:00:06]} 3. Nc3 {[%emt 0:00:05]} Nf6 {[%emt 0:00:03]} 4. Nf3 {[%emt 0:00:07]} g6 {[%emt 0:00:04]} 5. cxd5 {[%emt 0:00:14]} cxd5 {[%emt 0:00:01]} 6. Bf4 {[%emt 0:00:09]} Bg7 {[%emt 0:00:06]} 7. e3 {[%emt 0:00:08]} O-O {[%emt 0:00:07]} 8. h3 {[%emt 0:00:02]} Nc6 {[%emt 0:00:10]} 9. Be2 {[%emt 0:00:06]} Ne4 {[%emt 0:00:50]} 10. Rc1 {[%emt 0:00:32] D90: Grünfeld: 4 Nf3 Bg7 sidelines.} Re8 {[%emt 0:07:37]} 11. O-O {[%emt 0:01:31]} Nxc3 {[%emt 0:01:29]} 12. Rxc3 {[%emt 0:00:50] [#] White is slightly better.} e5 $146 {[%emt 0:16:18]} ({Predecessor:} 12... a6 13. a3 Be6 14. Qb3 Na5 15. Qa2 Rc8 16. Rfc1 Rxc3 17. Rxc3 Nc4 18. Ng5 b5 19. Nxe6 fxe6 {1-0 (43) Sosulin,E (2272)-Mitrofanov,A (2278) Tula 2000}) 13. dxe5 {[%emt 0:04:20]} (13. Nxe5 {seems wilder.} Nxe5 14. dxe5 Bxe5 15. Bxe5 Rxe5 16. Bf3) 13... Nxe5 {[%emt 0:00:49]} 14. Nxe5 {[%emt 0:04:44]} Bxe5 {[%emt 0:00:02]} 15. Bxe5 {[%emt 0:00:08]} Rxe5 {[%emt 0:00:01]} 16. Bf3 {[%emt 0:04:59][%cal Be2f3,Bf3d5,Bd5f7][%mdl 32]} Qh4 {[%emt 0:10:27]} ({Black should try} 16... Qg5) 17. Bxd5 $16 {[%emt 0:30:54]} Bxh3 $2 {[%emt 0:02:53] This move loses the game for Black.} (17... Be6 $16) 18. f4 {[%emt 0:01:57]} (18. Bxb7 Rd8 19. Rd3 Rxd3 20. Qxd3 Be6 $16) 18... Bg4 $2 {[%emt 0:03:25]} (18... Rxd5 19. Qxd5 Rd8) 19. Bxf7+ $1 $18 {[%emt 0:03:11]} Kf8 {[%emt 0:01:20]} 20. Qd4 {[%emt 0:02:16]} ({Not} 20. Qd6+ Re7 $18) 20... Rh5 {[%emt 0:06:57]} 21. Bd5 {[%emt 0:00:56] [#] Intending Qh8+ and mate.} ({Weaker is} 21. Rc7 Qh2+ 22. Kf2 Qh4+ 23. Kg1 Qh2+ 24. Kf2 Qh4+ 25. Kg1 $11) 21... Qh2+ {[%emt 0:09:42]} 22. Kf2 {[%emt 0:00:05] Qf6+ would kill now.} Qh4+ {[%emt 0:03:18]} 23. g3 {[%emt 0:00:06] Threatening mate with Rc7.} Qh2+ {[%emt 0:01:17]} (23... Rxd5 $18 24. gxh4 Rxd4) 24. Bg2 {[%emt 0:00:05] White threatens Rc7 and mate.} Bh3 {[%emt 0:01:00] [#]} 25. Rg1 $1 {[%emt 0:01:13] Weighted Error Value: White=0.71/Black=0.84} 1-0

[Event "Czech Open-GM 2022"]
[Site "Pardubice"]
[Date "2022.07.23"]
[Round "2.44"]
[White "Dwilewicz, Katarzyna"]
[Black "Malek, Daniel"]
[Result "1/2-1/2"]
[ECO "B15"]
[WhiteElo "2131"]
[BlackElo "2355"]
[Annotator "TA"]
[PlyCount "86"]
[EventDate "2022.07.22"]
[EventType "swiss"]
[EventCountry "CZE"]
[SourceTitle "playchess.com"]
[Source "ChessBase"]
[SourceQuality "1"]
[TimeControl "40/5400+30:1800+30"]

{[%evp 14,86,18,38,25,22,43,15,24,12,23,20,27,19,29,0,0,0,0,0,0,0,0,0,0,0,0,0,0,0,0,0,14,0,16,9,62,68,97,66,137,126,102,0,0,0,0,0,0,0,0,0,209,208,200,176,660,562,642,620,1190,584,5583,803,949,906,844,0,0,0,531,0,0,0,401]} 1. e4 {[%emt 0:00:03]} c6 {[%emt 0:00:06]} 2. d4 {[%emt 0:00:04]} d5 {[%emt 0:00:03]} 3. Nc3 {[%emt 0:00:10]} dxe4 {[%emt 0:00:04]} 4. Nxe4 {[%emt 0:00:05]} Nf6 {[%emt 0:00:06]} 5. Nxf6+ {[%emt 0:00:06]} exf6 {[%emt 0:00:04]} 6. c3 {[%emt 0:00:08]} Bd6 {[%emt 0:00:05]} 7. Bd3 {[%emt 0:00:07]} O-O {[%emt 0:00:07]} 8. Qc2 {[%emt 0:00:08] Active counter play!} Re8+ {[%emt 0:00:07] B15: Caro-Kann: 3 Nc3: 3...g6 and 3...dxe4 4 Nxe4 Nf6 5 Nxf6+ exf6.} 9. Ne2 {[%emt 0:00:05]} h5 {[%emt 0:00:07]} 10. Be3 {[%emt 0:00:35]} Nd7 {[%emt 0:00:09]} 11. O-O-O {[%emt 0:00:32]} Nf8 {[%emt 0:00:11]} 12. c4 {[%emt 0:02:38]} Be6 {[%emt 0:00:49][%cal Ob7b5]} 13. Kb1 {[%emt 0:00:29]} Rc8 {[%emt 0:01:24]} 14. Nc3 {[%emt 0:01:34]} Bb4 {[%emt 0:00:45]} 15. Ne4 {[%emt 0:00:22]} Be7 {[%emt 0:00:24]} 16. Rhe1 {[%emt 0:08:57]} b5 {[%emt 0:02:35] [#]} 17. Nc5 $146 {[%emt 0:05:51]} ({Predecessor:} 17. c5 f5 18. Nc3 b4 19. Ne2 Qd5 20. b3 Qd7 21. Ba6 Bd5 22. Nf4 Be4 23. Bd3 Bxd3 24. Nxd3 {½-½ (30) Manon,R (2164)-Zia,T (2235) Dhaka 2022}) 17... Bxc5 {[%emt 0:09:05]} 18. dxc5 {[%emt 0:00:09][%cal Od3h7] Black must now prevent Bh7+!} Qa5 {[%emt 0:00:19]} 19. a3 {[%emt 0:20:41]} bxc4 {[%emt 0:44:50]} 20. Bxc4 {[%emt 0:00:31]} Bxc4 {[%emt 0:00:39]} 21. Qxc4 {[%emt 0:00:06]} Ng6 {[%emt 0:00:21]} 22. h3 {[%emt 0:15:37]} Ne5 {[%emt 0:00:26]} 23. Qc2 {[%emt 0:01:22]} Rb8 {[%emt 0:00:25]} 24. Ka2 {[%emt 0:01:03]} Qb5 {[%emt 0:06:47]} ({Black should play} 24... Ng6 $11) 25. Bf4 $1 $14 {[%emt 0:08:04][%cal Og2g4]} a5 {[%emt 0:06:11]} 26. Re4 {[%emt 0:04:53]} Rb7 {[%emt 0:07:30]} (26... Re7 $14) 27. Bxe5 {[%emt 0:14:35]} fxe5 {[%emt 0:00:35]} 28. Rxe5 $40 {[%emt 0:03:47][%mdl 128] White attacks.} Qxb2+ $11 {[%emt 0:01:01]} 29. Qxb2 {[%emt 0:00:04]} Rxb2+ {[%emt 0:00:09]} 30. Kxb2 {[%emt 0:00:02]} Rxe5 $16 {[%emt 0:00:07][%mdl 4096] Endgame KR-KR} 31. Rc1 $1 {[%emt 0:00:37]} f6 {[%emt 0:04:08]} 32. Kb3 {[%emt 0:03:37]} Kf7 $2 {[%emt 0:01:10]} (32... Re4 $1 $11 {and Black is okay.}) 33. Ka4 $1 $18 {[%emt 0:06:23]} Re2 {[%emt 0:00:12]} 34. Kxa5 {[%emt 0:00:03]} Rxf2 $2 {[%emt 0:00:07]} (34... Rb2) 35. Kb6 {[%emt 0:00:15]} Rxg2 {[%emt 0:00:09]} 36. Kxc6 {[%emt 0:00:05] Threatens to win with Kd7.} Rg3 {[%emt 0:00:09]} 37. a4 {[%emt 0:00:46]} (37. Ra1 $142 {Hoping for a4.} Ke7 38. Kc7) 37... Rxh3 {[%emt 0:00:10]} 38. a5 {[%emt 0:00:20]} (38. Ra1 $142 Re3 39. a5) 38... Ra3 {[%emt 0:01:31]} 39. Kb6 $1 {[%emt 0:03:17]} Rb3+ {[%emt 0:00:09] [#]} 40. Kc7 $2 {[%emt 0:00:53]} (40. Ka6 $1 $18) 40... Ra3 $11 {[%emt 0:01:26]} 41. Kb6 $2 {[%emt 0:04:12][%mdl 8192]} (41. c6 $11 Rxa5 42. Kb7 Rb5+ 43. Ka6) 41... Rb3+ $18 {[%emt 0:06:03] [#]} 42. Kc7 $2 {[%emt 0:04:37]} ({White must play} 42. Ka6 $1 $18 {And now c6 would win.} Ke7 43. Rd1) 42... Ra3 $11 {[%emt 0:02:10]} 43. Kb6 $2 {[%emt 0:02:32][%mdl 8192]} (43. Kb7 $11 Rxa5 44. c6 Rb5+ 45. Ka6) 43... Rb3+ {[%emt 0:01:12][%mdl 32768] Weighted Error Value: White=0.40/Black=0.46. An unexpected result.} 1/2-1/2

[Event "Czech Open-GM 2022"]
[Site "Pardubice"]
[Date "2022.07.24"]
[Round "3.1"]
[White "Harsha Bharathakoti"]
[Black "Nemec, Jachym"]
[Result "1-0"]
[ECO "D43"]
[WhiteElo "2547"]
[BlackElo "2357"]
[Annotator "TA"]
[PlyCount "59"]
[EventDate "2022.07.22"]
[EventType "swiss"]
[EventCountry "CZE"]
[SourceTitle "playchess.com"]
[Source "ChessBase"]
[SourceQuality "1"]
[TimeControl "40/5400+30:1800+30"]

{[%evp 13,59,22,24,24,17,22,26,20,29,20,19,21,30,13,45,5,20,26,112,110,119,103,95,94,66,73,166,168,199,191,192,191,224,222,220,202,260,269,574,562,639,629,1048,1036,1096,1026,917,787]} 1. d4 {[%emt 0:00:29]} d5 {[%emt 0:00:02]} 2. c4 {[%emt 0:00:36]} c6 {[%emt 0:00:05]} 3. Nf3 {[%emt 0:00:59]} Nf6 {[%emt 0:00:05]} 4. Nc3 {[%emt 0:00:11]} e6 {[%emt 0:00:04]} 5. Bg5 {[%emt 0:00:08]} h6 {[%emt 0:00:19]} 6. Bxf6 {[%emt 0:07:00]} Qxf6 {[%emt 0:00:05]} 7. e3 {[%emt 0:00:05]} g6 {[%emt 0:00:06]} 8. Ne5 {[%emt 0:01:10] D43: Semi-Slav: 5 Bg5 h6.} Bg7 {[%emt 0:03:11]} 9. f4 {[%emt 0:00:07]} O-O {[%emt 0:00:47][%cal Oc6c5]} 10. h4 {[%emt 0:03:08] [#] White has an edge.} Nd7 $146 {[%emt 0:10:14]} ({Predecessor:} 10... c5 11. Qd2 Nc6 12. O-O-O Rd8 13. g4 cxd4 14. exd4 dxc4 15. Qe3 Qe7 16. Bxc4 Bd7 {½-½ (51) Adhiban,B (2639)-Robson,R (2670) Douglas 2019}) 11. Qd2 {[%emt 0:08:13]} Qe7 {[%emt 0:17:33]} 12. O-O-O {[%emt 0:12:53]} Rd8 {[%emt 0:14:58]} 13. Qf2 {[%emt 0:22:05]} a5 {[%emt 0:10:18]} 14. h5 {[%emt 0:13:37]} Nxe5 {[%emt 0:14:57]} 15. fxe5 {[%emt 0:07:58]} Bd7 {[%emt 0:03:22]} (15... f6 $11 {remains equal.}) 16. hxg6 $16 {[%emt 0:09:14]} fxg6 {[%emt 0:00:06]} 17. Qg3 {[%emt 0:00:28]} g5 {[%emt 0:00:39]} 18. Bd3 {[%emt 0:04:17]} a4 {[%emt 0:03:21]} 19. a3 {[%emt 0:02:46] White is more active.} Rf8 {[%emt 0:03:47] [#] Prevents Qf2.} (19... dxc4 $16 20. Bb1 c5) 20. Qg4 $1 $18 {[%emt 0:01:00]} b5 {[%emt 0:08:30]} 21. cxb5 {[%emt 0:02:36]} cxb5 {[%emt 0:00:06] [#]} 22. Na2 {[%emt 0:00:02] Against b4} ({And not} 22. Bxb5 Rac8 23. Bxd7 Rxc3+ 24. bxc3 Qxa3+ 25. Kd2 Qa2+ 26. Kd3 Qc4+ 27. Kd2 Qa2+ 28. Kc1 Qa3+ 29. Kd2 Qa2+ $11) ({But not} 22. Nxb5 $6 Bxb5 23. Bxb5 Rfc8+ 24. Kb1 Rab8 $16) 22... Rf2 {[%emt 0:01:51]} 23. Nb4 $40 {[%emt 0:00:18][%mdl 128] Black is in trouble.} Raf8 {[%emt 0:02:06]} 24. Kb1 {[%emt 0:00:46]} Qd8 {[%emt 0:00:40]} 25. Rh3 {[%emt 0:01:51]} Qc7 $2 {[%emt 0:02:15]} (25... R8f7 {is tougher.} 26. Rdh1 Qf8) 26. Rc1 {[%emt 0:00:14] White is clearly winning.} Qd8 {[%emt 0:00:20]} 27. Rch1 {[%emt 0:00:22]} R8f7 {[%emt 0:02:14]} 28. Rxh6 {[%emt 0:00:20] Black must now prevent Qh5.} Bxh6 {[%emt 0:00:31]} 29. Rxh6 {[%emt 0:00:03] White wants to mate with Qh5.} Qf8 {[%emt 0:00:53]} 30. Qh5 {[%emt 0:00:31] Weighted Error Value: White=0.04 (flawless) /Black=0.39} 1-0